[Event "*** Titled Tuesday Blitz"]
[Site "Chess.com"]
[Date "2019.01.01"]
[Round "4"]
[White "nihalsarin"]
[Black "Ali_rastbod"]
[Result "1/2-1/2"]
[WhiteElo "2951"]
[BlackElo "2571"]
[TimeControl "180+2"]
[EndTime "13:53:42 PST"]
[Termination "Game drawn by agreement"]

1. e4 {[%clk 0:03:01.9]} 1... e6 {[%clk 0:02:57.8]} 2. d4 {[%clk 0:03:02.1]}
2... d5 {[%clk 0:02:58.7]} 3. Nc3 {[%clk 0:03:03.7]} 3... Nf6 {[%clk 0:02:57.7]}
4. exd5 {[%clk 0:03:03.4]} 4... exd5 {[%clk 0:02:57.4]} 5. Bd3 {[%clk
0:03:04.9]} 5... c6 {[%clk 0:02:54.6]} 6. h3 {[%clk 0:03:05.7]} 6... Bd6 {[%clk
0:02:55.5]} 7. Qf3 {[%clk 0:03:07.2]} 7... h6 {[%clk 0:02:55.3]} 8. Nge2 {[%clk
0:03:08.8]} 8... O-O {[%clk 0:02:44.8]} 9. O-O {[%clk 0:03:09.3]} 9... Re8
{[%clk 0:02:46]} 10. Ng3 {[%clk 0:03:10.6]} 10... Be6 {[%clk 0:02:21.5]} 11. Nf5
{[%clk 0:03:09.8]} 11... Bxf5 {[%clk 0:02:22.2]} 12. Qxf5 {[%clk 0:03:11.7]}
12... Qe7 {[%clk 0:02:01.3]} 13. Bd2 {[%clk 0:03:11.5]} 13... Qe6 {[%clk
0:01:58.8]} 14. Qf3 {[%clk 0:03:04.9]} 14... Ne4 {[%clk 0:01:59.5]} 15. Be3
{[%clk 0:02:57.4]} 15... f5 {[%clk 0:01:56.3]} 16. Ne2 {[%clk 0:02:53.1]} 16...
g5 {[%clk 0:01:57.4]} 17. Qh5 {[%clk 0:02:45]} 17... f4 {[%clk 0:01:51]} 18. Bc1
{[%clk 0:02:46.4]} 18... Qf7 {[%clk 0:01:32.9]} 19. Qxf7+ {[%clk 0:02:36.5]}
19... Kxf7 {[%clk 0:01:34.8]} 20. c4 {[%clk 0:02:32]} 20... dxc4 {[%clk
0:01:29.5]} 21. Bxc4+ {[%clk 0:02:33.9]} 21... Kg7 {[%clk 0:01:28.6]} 22. Nc3
{[%clk 0:02:28.8]} 22... Nd7 {[%clk 0:01:24.9]} 23. Bd3 {[%clk 0:02:24.1]} 23...
Nef6 {[%clk 0:01:24.1]} 24. Bd2 {[%clk 0:02:24.3]} 24... Nb6 {[%clk 0:01:25.2]}
25. Rfe1 {[%clk 0:02:25]} 25... Nbd5 {[%clk 0:01:25.4]} 26. Nxd5 {[%clk
0:02:24.4]} 26... Nxd5 {[%clk 0:01:25.3]} 27. Kf1 {[%clk 0:02:26]} 27... Kf6
{[%clk 0:01:25.7]} 28. Rxe8 {[%clk 0:02:26.8]} 28... Rxe8 {[%clk 0:01:26.9]} 29.
Re1 {[%clk 0:02:28.5]} 29... Rxe1+ {[%clk 0:01:28]} 30. Kxe1 {[%clk 0:02:28]}
30... Bc7 {[%clk 0:01:29.9]} 31. Ke2 {[%clk 0:02:04.7]} 31... Bb6 {[%clk
0:01:29.4]} 32. Bc3 {[%clk 0:02:05.5]} 32... Nxc3+ {[%clk 0:01:29.2]} 33. bxc3
{[%clk 0:02:07.4]} 33... c5 {[%clk 0:01:31]} 34. d5 {[%clk 0:02:07.9]} 34... Ke5
{[%clk 0:01:26.1]} 35. c4 {[%clk 0:02:07.7]} 35... Bc7 {[%clk 0:01:20.6]} 36.
Kf3 {[%clk 0:02:07.5]} 36... Kf6 {[%clk 0:01:21.6]} 37. Kg4 {[%clk 0:02:07]}
37... Bd6 {[%clk 0:01:10.1]} 38. Kh5 {[%clk 0:01:59.1]} 38... Kg7 {[%clk
0:01:10.9]} 39. Kg4 {[%clk 0:01:58.4]} 39... Kf6 {[%clk 0:01:11.7]} 40. Kh5
{[%clk 0:01:59.8]} 40... Kg7 {[%clk 0:01:12.7]} 41. a4 {[%clk 0:02:01.4]} 41...
b6 {[%clk 0:01:11.2]} 42. h4 {[%clk 0:02:02.8]} 42... gxh4 {[%clk 0:01:11.9]}
43. Kxh4 {[%clk 0:02:04.7]} 43... Bc7 {[%clk 0:01:10.5]} 44. Kg4 {[%clk
0:02:05.6]} 44... Kf6 {[%clk 0:01:11.9]} 45. Kh5 {[%clk 0:02:07.2]} 45... Kg7
{[%clk 0:01:13.2]} 46. Bf5 {[%clk 0:02:08.5]} 46... Bd6 {[%clk 0:01:13.6]} 47.
Bd7 {[%clk 0:02:08.4]} 47... Bc7 {[%clk 0:01:13.9]} 48. Kg4 {[%clk 0:02:09.3]}
48... Kf6 {[%clk 0:01:14.8]} 49. Kh5 {[%clk 0:02:10.9]} 49... Kg7 {[%clk
0:01:15.8]} 50. Bb5 {[%clk 0:02:12.6]} 50... Bd6 {[%clk 0:01:16.6]} 51. Kg4
{[%clk 0:02:14.2]} 51... Kf6 {[%clk 0:01:17.8]} 52. Kh5 {[%clk 0:02:15.7]} 52...
Kg7 {[%clk 0:01:18.1]} 53. Bd7 {[%clk 0:02:17.6]} 53... Bc7 {[%clk 0:01:18.5]}
54. Bf5 {[%clk 0:02:18.6]} 54... Bd6 {[%clk 0:01:19.6]} 55. Be4 {[%clk 0:02:16]}
55... Bc7 {[%clk 0:01:20.8]} 56. Kg4 {[%clk 0:02:17.5]} 56... Kf6 {[%clk
0:01:22.1]} 57. Kh5 {[%clk 0:02:16.6]} 57... Kg7 {[%clk 0:01:23.3]} 58. Kg4
{[%clk 0:02:15.2]} 1/2-1/2

[Event "*** Titled Tuesday Blitz"]
[Site "Chess.com"]
[Date "2019.01.01"]
[Round "4"]
[White "RichardLeyvaP"]
[Black "robbykevlishvili"]
[Result "0-1"]
[WhiteElo "2534"]
[BlackElo "2782"]
[TimeControl "180+2"]
[EndTime "13:53:42 PST"]
[Termination "robbykevlishvili won by resignation"]

1. e4 {[%clk 0:03:00.2]} 1... e5 {[%clk 0:02:53.5]} 2. Nf3 {[%clk 0:03:00.2]}
2... Nc6 {[%clk 0:02:54.8]} 3. Bb5 {[%clk 0:03:00.9]} 3... a6 {[%clk 0:02:53.8]}
4. Bxc6 {[%clk 0:03:01.8]} 4... dxc6 {[%clk 0:02:51.9]} 5. Nc3 {[%clk
0:03:03.7]} 5... f6 {[%clk 0:02:47.1]} 6. d4 {[%clk 0:03:04]} 6... exd4 {[%clk
0:02:39.7]} 7. Nxd4 {[%clk 0:03:05.9]} 7... c5 {[%clk 0:02:41.6]} 8. Nde2 {[%clk
0:03:06.6]} 8... Qxd1+ {[%clk 0:02:42.8]} 9. Nxd1 {[%clk 0:03:08.5]} 9... Be6
{[%clk 0:02:39.7]} 10. Bf4 {[%clk 0:03:08.2]} 10... O-O-O {[%clk 0:02:40.5]} 11.
Ne3 {[%clk 0:03:09.3]} 11... Ne7 {[%clk 0:02:39.9]} 12. Rd1 {[%clk 0:03:09.3]}
12... Rxd1+ {[%clk 0:02:34.8]} 13. Kxd1 {[%clk 0:03:09.6]} 13... Ng6 {[%clk
0:02:26.2]} 14. Bg3 {[%clk 0:03:09.3]} 14... Bd6 {[%clk 0:02:24.7]} 15. Kc1
{[%clk 0:02:56.1]} 15... Rd8 {[%clk 0:02:15.1]} 16. Rd1 {[%clk 0:02:17.4]} 16...
Be7 {[%clk 0:02:14.1]} 17. Rxd8+ {[%clk 0:02:15.5]} 17... Kxd8 {[%clk 0:02:16]}
18. f4 {[%clk 0:02:14.7]} 18... Bf7 {[%clk 0:02:05]} 19. f5 {[%clk 0:02:11.7]}
19... Ne5 {[%clk 0:02:04.8]} 20. a3 {[%clk 0:02:01.5]} 20... Nc6 {[%clk
0:01:59.1]} 21. Bf4 {[%clk 0:01:54.4]} 21... Kd7 {[%clk 0:01:59.5]} 22. g4
{[%clk 0:01:54.3]} 22... c4 {[%clk 0:01:54.9]} 23. Kd2 {[%clk 0:01:50.5]} 23...
b5 {[%clk 0:01:55.7]} 24. Nd5 {[%clk 0:01:48.1]} 24... Bd6 {[%clk 0:01:51.3]}
25. Ke3 {[%clk 0:01:42.5]} 25... Bc5+ {[%clk 0:01:44.5]} 26. Kf3 {[%clk
0:01:22.4]} 26... Bxd5 {[%clk 0:01:27.7]} 27. exd5 {[%clk 0:01:23]} 27... Nd4+
{[%clk 0:01:24.4]} 28. Nxd4 {[%clk 0:01:24]} 28... Bxd4 {[%clk 0:01:26.3]} 29.
c3 {[%clk 0:01:25]} 29... Bc5 {[%clk 0:01:28.2]} 30. h4 {[%clk 0:01:22.7]} 30...
Bd6 {[%clk 0:01:26]} 31. Ke4 {[%clk 0:01:19.5]} 31... Bxf4 {[%clk 0:01:26.5]}
32. Kxf4 {[%clk 0:01:20.8]} 32... Kd6 {[%clk 0:01:28.1]} 33. Ke4 {[%clk
0:01:20.7]} 33... Kc5 {[%clk 0:01:25.6]} 34. g5 {[%clk 0:01:20.3]} 34... a5
{[%clk 0:01:20]} 35. h5 {[%clk 0:01:15.6]} 35... h6 {[%clk 0:01:21.2]} 36. gxh6
{[%clk 0:00:58.1]} 36... gxh6 {[%clk 0:01:23.1]} 37. d6 {[%clk 0:00:38.6]} 37...
cxd6 {[%clk 0:01:20.6]} 0-1

[Event "*** Titled Tuesday Blitz"]
[Site "Chess.com"]
[Date "2019.01.01"]
[Round "4"]
[White "Hieronymus00"]
[Black "Abdodi"]
[Result "1-0"]
[WhiteElo "2170"]
[BlackElo "2181"]
[TimeControl "180+2"]
[EndTime "13:53:51 PST"]
[Termination "Hieronymus00 won by resignation"]

1. e4 {[%clk 0:03:01.9]} 1... c6 {[%clk 0:03:00.9]} 2. d4 {[%clk 0:03:01.5]}
2... d5 {[%clk 0:03:02.8]} 3. Nc3 {[%clk 0:03:01.8]} 3... dxe4 {[%clk
0:03:02.7]} 4. Nxe4 {[%clk 0:03:02.9]} 4... Nf6 {[%clk 0:03:04.6]} 5. Nxf6+
{[%clk 0:03:02.8]} 5... exf6 {[%clk 0:03:06.5]} 6. c3 {[%clk 0:02:46.2]} 6...
Bd6 {[%clk 0:03:01.5]} 7. Bd3 {[%clk 0:02:43.5]} 7... O-O {[%clk 0:02:59.5]} 8.
Qc2 {[%clk 0:02:43.7]} 8... g6 {[%clk 0:02:54.6]} 9. h4 {[%clk 0:02:41]} 9... f5
{[%clk 0:02:46]} 10. Ne2 {[%clk 0:02:31.6]} 10... c5 {[%clk 0:02:39.1]} 11. dxc5
{[%clk 0:02:19.8]} 11... Bxc5 {[%clk 0:02:41]} 12. Bh6 {[%clk 0:02:14]} 12...
Re8 {[%clk 0:02:41.2]} 13. O-O-O {[%clk 0:02:10.6]} 13... Qc7 {[%clk 0:02:14.2]}
14. Nf4 {[%clk 0:02:07.4]} 14... Nc6 {[%clk 0:02:10.3]} 15. Nd5 {[%clk
0:01:56.5]} 15... Qe5 {[%clk 0:01:08.2]} 16. Bc4 {[%clk 0:01:50.1]} 16... Be6
{[%clk 0:00:50.3]} 17. Rhe1 {[%clk 0:01:22.4]} 17... Qh8 {[%clk 0:00:48.4]} 18.
Nc7 {[%clk 0:00:40.7]} 18... Rac8 {[%clk 0:00:47.3]} 19. Nxe8 {[%clk 0:00:37.2]}
19... Rxe8 {[%clk 0:00:49.2]} 20. Bxe6 {[%clk 0:00:38]} 20... fxe6 {[%clk
0:00:50.2]} 21. Re2 {[%clk 0:00:33]} 21... Bf8 {[%clk 0:00:30.1]} 22. Bxf8
{[%clk 0:00:27.4]} 22... Kxf8 {[%clk 0:00:32]} 23. Rd7 {[%clk 0:00:24.7]} 23...
Re7 {[%clk 0:00:20]} 24. Rxe7 {[%clk 0:00:25.6]} 24... Nxe7 {[%clk 0:00:21]} 25.
Rxe6 {[%clk 0:00:26.1]} 25... Qg7 {[%clk 0:00:21.5]} 26. Qe2 {[%clk 0:00:25.6]}
1-0

[Event "*** Titled Tuesday Blitz"]
[Site "Chess.com"]
[Date "2019.01.01"]
[Round "4"]
[White "ckgchess"]
[Black "Keaton87"]
[Result "0-1"]
[WhiteElo "2601"]
[BlackElo "2522"]
[TimeControl "180+2"]
[EndTime "13:54:01 PST"]
[Termination "Keaton87 won on time"]

1. e4 {[%clk 0:01:38.5]} 1... c5 {[%clk 0:03:00]} 2. c3 {[%clk 0:01:39.1]} 2...
Nf6 {[%clk 0:03:00.4]} 3. e5 {[%clk 0:01:40.5]} 3... Nd5 {[%clk 0:03:00.9]} 4.
d4 {[%clk 0:01:42.4]} 4... cxd4 {[%clk 0:03:02.1]} 5. Qxd4 {[%clk 0:01:44.3]}
5... e6 {[%clk 0:03:02.7]} 6. Nf3 {[%clk 0:01:45.8]} 6... Nc6 {[%clk 0:03:03.8]}
7. Qe4 {[%clk 0:01:47]} 7... f5 {[%clk 0:03:05.4]} 8. Qe2 {[%clk 0:01:47.3]}
8... Qc7 {[%clk 0:03:06.7]} 9. g3 {[%clk 0:01:48.6]} 9... b6 {[%clk 0:03:08.1]}
10. Nbd2 {[%clk 0:01:48.3]} 10... a5 {[%clk 0:03:03.6]} 11. Bg2 {[%clk
0:01:47.8]} 11... Ba6 {[%clk 0:03:04.6]} 12. c4 {[%clk 0:01:49.3]} 12... Ndb4
{[%clk 0:02:20.7]} 13. O-O {[%clk 0:01:49]} 13... Rc8 {[%clk 0:02:19.4]} 14. b3
{[%clk 0:01:49.3]} 14... Nc2 {[%clk 0:02:12.5]} 15. Rb1 {[%clk 0:01:49.6]} 15...
N2d4 {[%clk 0:02:12.8]} 16. Nxd4 {[%clk 0:01:50.8]} 16... Nxd4 {[%clk
0:02:13.9]} 17. Qe1 {[%clk 0:01:25.2]} 17... Bb7 {[%clk 0:02:12]} 18. Bb2 {[%clk
0:01:21.5]} 18... Bxg2 {[%clk 0:02:12.8]} 19. Kxg2 {[%clk 0:01:23.4]} 19... Qc6+
{[%clk 0:02:12.2]} 20. f3 {[%clk 0:01:24.1]} 20... Bc5 {[%clk 0:02:10.3]} 21.
Rd1 {[%clk 0:01:18.5]} 21... O-O {[%clk 0:02:08.4]} 22. Nb1 {[%clk 0:01:17.2]}
22... Nc2 {[%clk 0:02:06.1]} 23. Qe2 {[%clk 0:01:00.9]} 23... Ne3+ {[%clk
0:02:07.2]} 24. Kh3 {[%clk 0:01:02.5]} 24... g5 {[%clk 0:01:57.9]} 25. Rd6
{[%clk 0:00:17.1]} 25... g4+ {[%clk 0:01:54.5]} 26. fxg4 {[%clk 0:00:19]} 26...
fxg4+ {[%clk 0:01:55.6]} 27. Kh4 {[%clk 0:00:12.8]} 27... Bxd6 {[%clk
0:01:42.4]} 28. exd6 {[%clk 0:00:11.2]} 28... Qe4 {[%clk 0:00:54.7]} 29. Nc3
{[%clk 0:00:04]} 29... Ng2+ {[%clk 0:00:47.1]} 0-1

[Event "*** Titled Tuesday Blitz"]
[Site "Chess.com"]
[Date "2019.01.01"]
[Round "4"]
[White "pastouche06"]
[Black "ElHelvetico"]
[Result "1-0"]
[WhiteElo "2443"]
[BlackElo "2543"]
[TimeControl "180+2"]
[EndTime "13:54:03 PST"]
[Termination "pastouche06 won by resignation"]

1. d4 {[%clk 0:03:01.9]} 1... f5 {[%clk 0:02:59.5]} 2. Bg5 {[%clk 0:03:01]} 2...
g6 {[%clk 0:03:00.4]} 3. Nc3 {[%clk 0:03:01.4]} 3... Bg7 {[%clk 0:03:01.5]} 4.
h4 {[%clk 0:02:56.6]} 4... h6 {[%clk 0:02:53.7]} 5. Bf4 {[%clk 0:02:57.2]} 5...
Nf6 {[%clk 0:02:55]} 6. e3 {[%clk 0:02:57.7]} 6... O-O {[%clk 0:02:53.2]} 7. Qf3
{[%clk 0:02:48.2]} 7... d6 {[%clk 0:02:40.9]} 8. Bc4+ {[%clk 0:02:40.6]} 8... e6
{[%clk 0:02:41.7]} 9. Nge2 {[%clk 0:02:31.9]} 9... Kh7 {[%clk 0:02:30.9]} 10.
O-O-O {[%clk 0:02:22.3]} 10... Qe8 {[%clk 0:02:19.3]} 11. Ng3 {[%clk 0:01:05.4]}
11... Nc6 {[%clk 0:01:54.3]} 12. a3 {[%clk 0:00:51.2]} 12... a6 {[%clk
0:01:29.2]} 13. Kb1 {[%clk 0:00:49.5]} 13... b5 {[%clk 0:01:29]} 14. Bb3 {[%clk
0:00:46.6]} 14... Bb7 {[%clk 0:01:30.5]} 15. Qe2 {[%clk 0:00:41.1]} 15... Na5
{[%clk 0:01:15.4]} 16. Ba2 {[%clk 0:00:39.9]} 16... e5 {[%clk 0:00:49.5]} 17.
dxe5 {[%clk 0:00:35.6]} 17... dxe5 {[%clk 0:00:51.4]} 18. Bg5 {[%clk 0:00:36.8]}
18... hxg5 {[%clk 0:00:23.6]} 19. hxg5+ {[%clk 0:00:37.4]} 19... Nh5 {[%clk
0:00:25.3]} 20. Nxh5 {[%clk 0:00:39]} 20... gxh5 {[%clk 0:00:27]} 21. Rxh5+
{[%clk 0:00:40.5]} 21... Kg6 {[%clk 0:00:27.3]} 22. Rdh1 {[%clk 0:00:42.1]}
22... Nc4 {[%clk 0:00:22.6]} 23. Rh7 {[%clk 0:00:27.7]} 23... f4 {[%clk
0:00:12.7]} 24. Qh5+ {[%clk 0:00:22.1]} 24... Kf5 {[%clk 0:00:12.9]} 25. Qh3+
{[%clk 0:00:23.1]} 25... Kg6 {[%clk 0:00:12]} 26. Rxg7+ {[%clk 0:00:22.1]} 1-0

[Event "*** Titled Tuesday Blitz"]
[Site "Chess.com"]
[Date "2019.01.01"]
[Round "4"]
[White "ChessGamingPro"]
[Black "Tulipaz"]
[Result "0-1"]
[WhiteElo "1648"]
[BlackElo "2479"]
[TimeControl "180+2"]
[EndTime "13:54:08 PST"]
[Termination "Tulipaz won by resignation"]

1. e4 {[%clk 0:03:01.9]} 1... e5 {[%clk 0:03:00.1]} 2. Nf3 {[%clk 0:03:01.6]}
2... Nf6 {[%clk 0:03:01.3]} 3. Nc3 {[%clk 0:03:00.2]} 3... Bb4 {[%clk
0:03:00.9]} 4. Nxe5 {[%clk 0:03:00]} 4... O-O {[%clk 0:03:00.7]} 5. d3 {[%clk
0:02:57.3]} 5... d5 {[%clk 0:03:00.9]} 6. f3 {[%clk 0:02:53.4]} 6... d4 {[%clk
0:02:45.7]} 7. Bd2 {[%clk 0:02:49.5]} 7... dxc3 {[%clk 0:02:45.1]} 8. bxc3
{[%clk 0:02:50.3]} 8... Ba5 {[%clk 0:02:38.2]} 9. d4 {[%clk 0:02:50.2]} 9...
Nbd7 {[%clk 0:02:34.7]} 10. Nxd7 {[%clk 0:02:36.3]} 10... Bxd7 {[%clk 0:02:31]}
11. e5 {[%clk 0:02:29.5]} 11... Nd5 {[%clk 0:02:26.4]} 12. c4 {[%clk 0:02:25.5]}
12... Ne3 {[%clk 0:01:52.7]} 13. Qc1 {[%clk 0:02:21.5]} 13... Bxd2+ {[%clk
0:01:50.1]} 14. Qxd2 {[%clk 0:02:16.9]} 14... Nxf1 {[%clk 0:01:50.1]} 15. Rxf1
{[%clk 0:02:15.4]} 15... Re8 {[%clk 0:01:41.8]} 16. f4 {[%clk 0:02:05.5]} 16...
Qh4+ {[%clk 0:01:34.3]} 17. g3 {[%clk 0:02:05.3]} 17... Qh5 {[%clk 0:01:33.3]}
18. Qf2 {[%clk 0:01:47.2]} 18... Bh3 {[%clk 0:01:29.1]} 19. Rg1 {[%clk
0:01:39.4]} 19... Qg4 {[%clk 0:01:20.7]} 20. Kd2 {[%clk 0:01:26.1]} 20... Rad8
{[%clk 0:01:19.2]} 21. Kc3 {[%clk 0:01:23]} 21... c6 {[%clk 0:01:00.5]} 22. Rae1
{[%clk 0:01:17.6]} 22... h5 {[%clk 0:00:54.8]} 23. Re3 {[%clk 0:01:05.2]} 23...
Qd7 {[%clk 0:00:47.2]} 24. Rd3 {[%clk 0:00:56.8]} 24... Bf5 {[%clk 0:00:46.5]}
25. Rd2 {[%clk 0:00:55.7]} 25... Qc7 {[%clk 0:00:46.2]} 26. Kb2 {[%clk
0:00:50.1]} 26... Qb6+ {[%clk 0:00:35.9]} 27. Ka1 {[%clk 0:00:46.2]} 27... Be6
{[%clk 0:00:32.6]} 28. c5 {[%clk 0:00:33.7]} 28... Qa5 {[%clk 0:00:28.6]} 29. c4
{[%clk 0:00:20.4]} 29... Qc3+ {[%clk 0:00:25.7]} 30. Rb2 {[%clk 0:00:19.5]} 0-1

[Event "*** Titled Tuesday Blitz"]
[Site "Chess.com"]
[Date "2019.01.01"]
[Round "4"]
[White "Peng_Li-Min"]
[Black "Peroncio"]
[Result "1-0"]
[WhiteElo "2662"]
[BlackElo "2629"]
[TimeControl "180+2"]
[EndTime "13:54:19 PST"]
[Termination "Peng_Li-Min won by resignation"]

1. e4 {[%clk 0:03:01.8]} 1... e5 {[%clk 0:03:01.2]} 2. Nf3 {[%clk 0:03:02.7]}
2... Nc6 {[%clk 0:03:02.6]} 3. Bb5 {[%clk 0:03:01.1]} 3... a6 {[%clk 0:03:03.2]}
4. Bxc6 {[%clk 0:03:02.3]} 4... dxc6 {[%clk 0:03:04.5]} 5. O-O {[%clk
0:03:04.2]} 5... Qf6 {[%clk 0:03:05.8]} 6. d4 {[%clk 0:02:39.9]} 6... exd4
{[%clk 0:03:07.7]} 7. Qxd4 {[%clk 0:02:40.3]} 7... Qxd4 {[%clk 0:03:08.1]} 8.
Nxd4 {[%clk 0:02:42.2]} 8... Bd7 {[%clk 0:03:10]} 9. Be3 {[%clk 0:02:33.8]} 9...
O-O-O {[%clk 0:03:11]} 10. Rd1 {[%clk 0:02:35.1]} 10... Re8 {[%clk 0:03:09.4]}
11. f3 {[%clk 0:02:35.9]} 11... f5 {[%clk 0:03:05.4]} 12. Nc3 {[%clk 0:02:36.1]}
12... Bb4 {[%clk 0:02:22]} 13. Nde2 {[%clk 0:02:32]} 13... Nf6 {[%clk
0:02:18.8]} 14. Bd4 {[%clk 0:02:31.2]} 14... Rhf8 {[%clk 0:02:11.9]} 15. e5
{[%clk 0:02:27.5]} 15... Nh5 {[%clk 0:02:01.7]} 16. g3 {[%clk 0:02:03.5]} 16...
c5 {[%clk 0:01:51.7]} 17. Nd5 {[%clk 0:01:27]} 17... cxd4 {[%clk 0:01:07.3]} 18.
Nxb4 {[%clk 0:01:26.1]} 18... c5 {[%clk 0:01:04.1]} 19. Nd3 {[%clk 0:01:25.1]}
19... b6 {[%clk 0:01:01.4]} 20. f4 {[%clk 0:01:23.6]} 20... g6 {[%clk
0:00:59.6]} 21. b4 {[%clk 0:01:19.5]} 21... Bb5 {[%clk 0:00:33.7]} 22. Kf2
{[%clk 0:00:57.8]} 22... Ng7 {[%clk 0:00:20.9]} 23. bxc5 {[%clk 0:00:57.6]}
23... Bxd3 {[%clk 0:00:22.6]} 24. Rxd3 {[%clk 0:00:54.6]} 24... bxc5 {[%clk
0:00:24.2]} 25. c3 {[%clk 0:00:45.4]} 25... dxc3 {[%clk 0:00:14.9]} 26. Nxc3
{[%clk 0:00:47.3]} 26... Ne6 {[%clk 0:00:16.5]} 27. Rd6 {[%clk 0:00:47.5]} 27...
Kc7 {[%clk 0:00:15]} 28. Nd5+ {[%clk 0:00:48.3]} 28... Kb7 {[%clk 0:00:15.2]}
29. Rb1+ {[%clk 0:00:49.5]} 29... Ka7 {[%clk 0:00:15.6]} 30. Rd7+ {[%clk
0:00:50.8]} 30... Ka8 {[%clk 0:00:16.8]} 31. Rbb7 {[%clk 0:00:51.1]} 1-0

[Event "*** Titled Tuesday Blitz"]
[Site "Chess.com"]
[Date "2019.01.01"]
[Round "4"]
[White "ChessChronicles123"]
[Black "SolidJ"]
[Result "0-1"]
[WhiteElo "1811"]
[BlackElo "1680"]
[TimeControl "180+2"]
[EndTime "13:54:24 PST"]
[Termination "SolidJ won by checkmate"]

1. Nf3 {[%clk 0:03:01.9]} 1... Nf6 {[%clk 0:02:51.2]} 2. g3 {[%clk 0:03:03]}
2... d5 {[%clk 0:02:51.7]} 3. Bg2 {[%clk 0:03:04.6]} 3... g6 {[%clk 0:02:52.3]}
4. c4 {[%clk 0:03:06.1]} 4... Bg7 {[%clk 0:02:48.3]} 5. O-O {[%clk 0:03:07.6]}
5... c6 {[%clk 0:02:46.6]} 6. d4 {[%clk 0:03:05.4]} 6... Bg4 {[%clk 0:02:47.1]}
7. Nc3 {[%clk 0:03:05.7]} 7... dxc4 {[%clk 0:02:46.6]} 8. Ne5 {[%clk 0:03:05.6]}
8... Be6 {[%clk 0:02:43.9]} 9. Qa4 {[%clk 0:02:51.4]} 9... O-O {[%clk 0:02:40]}
10. Be3 {[%clk 0:02:42.9]} 10... Bd5 {[%clk 0:02:13]} 11. Nxc4 {[%clk
0:02:07.2]} 11... Bxg2 {[%clk 0:02:08.8]} 12. Kxg2 {[%clk 0:02:05.1]} 12... b5
{[%clk 0:02:10.2]} 13. Nxb5 {[%clk 0:02:05.2]} 13... cxb5 {[%clk 0:02:10.7]} 14.
Qxb5 {[%clk 0:02:06.6]} 14... Qd5+ {[%clk 0:02:04.8]} 15. Qxd5 {[%clk 0:02:06]}
15... Nxd5 {[%clk 0:02:05.7]} 16. Bg5 {[%clk 0:02:03.8]} 16... Rd8 {[%clk
0:01:44]} 17. e4 {[%clk 0:02:04]} 17... Nf6 {[%clk 0:01:45]} 18. Rfd1 {[%clk
0:01:57.8]} 18... Na6 {[%clk 0:01:45]} 19. a3 {[%clk 0:01:51.1]} 19... h6 {[%clk
0:01:40.9]} 20. Bf4 {[%clk 0:01:47.4]} 20... Nxe4 {[%clk 0:01:39.5]} 21. Be5
{[%clk 0:01:37.1]} 21... f6 {[%clk 0:01:35.2]} 22. Bf4 {[%clk 0:01:36.5]} 22...
g5 {[%clk 0:01:35.9]} 23. Be3 {[%clk 0:01:37.3]} 23... Nc7 {[%clk 0:01:34.4]}
24. Kf3 {[%clk 0:01:29.6]} 24... Nd6 {[%clk 0:01:27]} 25. Na5 {[%clk 0:01:27.9]}
25... Nd5 {[%clk 0:01:27]} 26. Rac1 {[%clk 0:01:23.8]} 26... f5 {[%clk
0:01:26.9]} 27. Rc5 {[%clk 0:01:16.1]} 27... e6 {[%clk 0:01:18.4]} 28. Rdc1
{[%clk 0:01:09.8]} 28... Rdc8 {[%clk 0:01:12.6]} 29. Rc6 {[%clk 0:00:59.7]}
29... Rxc6 {[%clk 0:01:07.2]} 30. Rxc6 {[%clk 0:01:00.6]} 30... Bf8 {[%clk
0:00:56.6]} 31. Bd2 {[%clk 0:00:51.4]} 31... Rc8 {[%clk 0:00:56]} 32. Ra6 {[%clk
0:00:52.4]} 32... Ne4 {[%clk 0:00:51.3]} 33. Bb4 {[%clk 0:00:33.6]} 33... Bxb4
{[%clk 0:00:41]} 34. axb4 {[%clk 0:00:34.3]} 34... Rc2 {[%clk 0:00:33.4]} 35.
Kg2 {[%clk 0:00:27.3]} 35... Rxf2+ {[%clk 0:00:33.1]} 36. Kh3 {[%clk 0:00:28.1]}
36... g4+ {[%clk 0:00:33]} 37. Kh4 {[%clk 0:00:29.5]} 37... Rxh2# {[%clk
0:00:34.3]} 0-1

[Event "*** Titled Tuesday Blitz"]
[Site "Chess.com"]
[Date "2019.01.01"]
[Round "4"]
[White "jk13"]
[Black "Didici"]
[Result "1-0"]
[WhiteElo "2710"]
[BlackElo "2606"]
[TimeControl "180+2"]
[EndTime "13:54:27 PST"]
[Termination "jk13 won by resignation"]

1. e4 {[%clk 0:03:01.9]} 1... e5 {[%clk 0:03:00.3]} 2. Nf3 {[%clk 0:03:03]} 2...
Nc6 {[%clk 0:03:01.6]} 3. Bc4 {[%clk 0:03:04.6]} 3... Nf6 {[%clk 0:03:02.2]} 4.
d3 {[%clk 0:03:06.1]} 4... Be7 {[%clk 0:03:03]} 5. O-O {[%clk 0:03:07.7]} 5...
O-O {[%clk 0:03:04.2]} 6. Re1 {[%clk 0:03:09.2]} 6... d6 {[%clk 0:03:03.4]} 7.
a4 {[%clk 0:03:10.7]} 7... Kh8 {[%clk 0:03:04.2]} 8. a5 {[%clk 0:03:12.3]} 8...
a6 {[%clk 0:03:01.3]} 9. Nc3 {[%clk 0:03:13.6]} 9... Ng8 {[%clk 0:02:55.6]} 10.
d4 {[%clk 0:03:11.5]} 10... Bg4 {[%clk 0:02:49.8]} 11. dxe5 {[%clk 0:03:12.5]}
11... Nxe5 {[%clk 0:02:02.6]} 12. Be2 {[%clk 0:03:09.8]} 12... Bxf3 {[%clk
0:02:03]} 13. gxf3 {[%clk 0:02:42]} 13... f5 {[%clk 0:01:44.3]} 14. f4 {[%clk
0:02:43.5]} 14... Nc6 {[%clk 0:01:34.8]} 15. f3 {[%clk 0:02:29.9]} 15... Bf6
{[%clk 0:01:25.3]} 16. Be3 {[%clk 0:02:29.4]} 16... Nge7 {[%clk 0:01:22.5]} 17.
Qd2 {[%clk 0:02:27.9]} 17... g6 {[%clk 0:01:08.5]} 18. Kh1 {[%clk 0:02:26]}
18... Bg7 {[%clk 0:01:09.6]} 19. Bc4 {[%clk 0:02:22.7]} 19... Qd7 {[%clk
0:01:10.7]} 20. Nd5 {[%clk 0:02:05]} 20... Rae8 {[%clk 0:01:07.9]} 21. c3 {[%clk
0:01:58.9]} 21... Ng8 {[%clk 0:01:02.4]} 22. Bg1 {[%clk 0:01:55.9]} 22... Nd8
{[%clk 0:01:00]} 23. Rad1 {[%clk 0:01:54.5]} 23... Ne6 {[%clk 0:01:00.7]} 24. b4
{[%clk 0:01:40.6]} 24... Qf7 {[%clk 0:00:51.9]} 25. Rf1 {[%clk 0:01:28.8]} 25...
Nf6 {[%clk 0:00:46.9]} 26. exf5 {[%clk 0:00:57.1]} 26... gxf5 {[%clk 0:00:46.2]}
27. Rde1 {[%clk 0:00:55.7]} 27... Qd7 {[%clk 0:00:09.2]} 28. Ba2 {[%clk
0:00:45.5]} 28... c6 {[%clk 0:00:07.1]} 29. Nb6 {[%clk 0:00:41.1]} 29... Qf7
{[%clk 0:00:04.6]} 30. Qxd6 {[%clk 0:00:40.4]} 30... Ne4 {[%clk 0:00:03.2]} 31.
fxe4 {[%clk 0:00:39.8]} 1-0